fUSD/lending_fUSD_20240211
["ID","MTS","AMOUNT","RATE_DAILY","PERIOD"]
[313756655,1707678569592,267.47,0.00019753,2]
[313756656,1707678569797,267.47,0.00022017,2]
[313756665,1707678602741,150.0,0.00021651,2]
[313756666,1707678602956,150.0,0.00021651,2]
[313756667,1707678603158,251.3237514,0.00021651,2]
[313756677,1707678631894,-155.0,0.00022405,2]
[313756678,1707678631905,-303.75186586,0.00022406,2]
[313756679,1707678631914,-155.0,0.00022406,2]
[313756680,1707678631923,-155.0,0.00022406,2]
[313756681,1707678631933,-161.32387663,0.00022406,2]
[313756682,1707678631943,-527.82356998,0.00022406,2]
[313756683,1707678631953,-345.19549852,0.00022407,2]
[313756684,1707678631963,-1609.17088666,0.00022443,2]
[313756685,1707678631972,-331.14,0.00022459,2]
[313756686,1707678631982,-300.0,0.000225,8]
[313756687,1707678631995,-331.14,0.00022519,2]
[313756688,1707678632005,-316.57413601,0.00022549,2]
[313756689,1707678632015,-78.37154709,0.00022549,2]
[313756690,1707678632037,-194.34845291,0.00022549,2]
[313756691,1707678632046,-316.57413583,0.00022568,2]
[313756692,1707678632055,-331.14,0.00022579,2]
[313756693,1707678632065,-316.57413583,0.00022587,2]
[313756694,1707678632074,-700.0,0.000226,8]
[313756695,1707678632083,-150.0,0.00022606,2]
[313756696,1707678632092,-316.57413583,0.00022607,2]
[313756697,1707678632101,-286.29,0.00022607,2]
[313756698,1707678632110,-316.57413583,0.00022626,2]
[313756699,1707678632119,-331.14,0.00022639,2]
[313756700,1707678632128,-300.0,0.00022643,2]
[313756701,1707678632137,-316.57413583,0.00022645,2]
[313756702,1707678632147,-2328.2763,0.00022649,2]
[313756703,1707678632157,-894.69785252,0.00022649,2]
[313756704,1707678632168,-13992.93764748,0.00022649,2]
[313756705,1707678632177,-5384.8652,0.00022649,2]
[313756706,1707678632186,-206.9592,0.00022649,2]
[313756707,1707678632196,-316.57413583,0.00022664,2]
[313756708,1707678632204,-236.06381666,0.00022683,2]
[313756709,1707678632234,-80.51031917,0.00022683,2]
[313756710,1707678632245,-331.14,0.00022699,2]
[313756711,1707678632255,-1000.0,0.000227,8]
[313756712,1707678632263,-316.57413583,0.00022703,2]
[313756713,1707678632272,-316.57413583,0.00022722,2]
[313756714,1707678632284,-5203.95140917,0.00022736,2]
[313756715,1707678632296,-498.10879774,0.00022736,2]
[313756716,1707678632317,-310.641543,0.00022736,2]
[313756717,1707678632329,-53458.8055169,0.00022736,2]
[313756718,1707678632340,-316.57413583,0.00022741,2]
[313756719,1707678632349,-727.11,0.00022743,2]
[313756720,1707678632361,-701.71,0.00022743,2]
[313756721,1707678632370,-737.91,0.00022746,2]
[313756722,1707678632381,-636.35,0.00022746,2]
[313756723,1707678632391,-246.99,0.00022746,2]
[313756724,1707678632401,-13264.61,0.00022746,2]
[313756725,1707678632410,-727.03,0.00022746,2]
[313756726,1707678632419,-212.73792894,0.00022747,2]
[313756727,1707678632428,-155.0,0.00022747,2]
[313756728,1707678632440,-155.0,0.00022747,2]
[313756729,1707678632450,-29931.05165601,0.00022749,2]
[313756730,1707678632471,-1499.715,0.00022749,2]
[313756731,1707678632491,-341.59608879,0.00022749,2]
[313756732,1707678632502,-1153.450029,0.00022749,2]
[313756735,1707678637974,-486.1854593,0.00022749,2]
[313756736,1707678637985,-453.82340139,0.00022749,2]
[313756737,1707678638034,-280.0,0.00022749,2]
[313756738,1707678638047,-1755.97691169,0.00022749,2]
[313756739,1707678638059,-1000.72525711,0.00022749,2]
[313756740,1707678638091,-93667.93521319,0.00022749,2]
[313756745,1707678638538,-668.50793059,0.00022749,2]
[313756746,1707678638551,-6721.13279701,0.00022749,2]
[313756747,1707678638564,-370.73701674,0.00022749,2]
[313756748,1707678638575,-20661.60037428,0.00022749,2]
[313756749,1707678638588,-1237.078,0.00022749,2]
[313756750,1707678638600,-11727.91380655,0.00022749,2]
[313756751,1707678638612,-289.71185933,0.00022749,2]
[313756752,1707678638624,-1914.184875,0.00022749,2]
[313756753,1707678638641,-122959.41507454,0.00022749,2]
[313756754,1707678638650,-35259.3847,0.0002275,2]
[313756755,1707678638660,-678.4512,0.0002275,2]
[313756756,1707678638670,-331.14,0.00022759,2]
[313756757,1707678638679,-316.57413583,0.0002276,2]
[313756758,1707678638690,-316.57413583,0.0002278,2]
[313756759,1707678638699,-316.57413583,0.00022799,2]
[313756760,1707678638708,-10874.58129577,0.000228,7]
[313756761,1707678638717,-1400.0,0.000228,8]
[313756762,1707678638727,-316.57413583,0.00022818,2]
[313756763,1707678638737,-331.14,0.00022818,2]
[313756764,1707678638746,-316.57413583,0.00022837,2]
[313756765,1707678638755,-316.57413583,0.00022856,2]
[313756766,1707678638765,-316.57413583,0.00022876,2]
[313756767,1707678638774,-331.14,0.00022878,2]
[313756768,1707678638783,-316.57413583,0.00022895,2]
[313756769,1707678638792,-2022.78878145,0.000229,2]
[313756770,1707678638802,-1700.0,0.000229,8]
[313756771,1707678638814,-931.29493306,0.00022914,2]
[313756772,1707678638823,-316.57413583,0.00022914,2]
[313756773,1707678638834,-288.72114817,0.00022914,2]
[313756774,1707678638845,-1695.78152134,0.00022914,2]
[313756775,1707678638858,-183.92020065,0.00022914,2]
[313756776,1707678638866,-331.14,0.00022938,2]
[313756777,1707678638876,-2878.74334534,0.0002296,2]
[313756778,1707678638886,-315.23652544,0.00022975,2]
[313756779,1707678638896,-229.09511787,0.0002299,2]
[313756780,1707678638906,-155.0,0.00022997,2]
[313756781,1707678638915,-526.21762846,0.00022997,2]
[313756782,1707678638926,-711.2900344,0.00022997,2]
[313756783,1707678638935,-268.01270594,0.00022997,2]
[313756784,1707678638946,-2314.44464753,0.00022998,2]
[313756785,1707678638955,-234.53774303,0.00022998,2]
[313756786,1707678638964,-155.79514091,0.00022998,2]
[313756787,1707678638973,-477.88892515,0.00022998,2]
[313756788,1707678638982,-214.06438507,0.00022998,2]
[313756789,1707678638991,-3569.44343843,0.00022998,2]
[313756790,1707678639000,-331.14,0.00022998,2]
[313756791,1707678639009,-33312.479328,0.00022999,2]
[313756792,1707678639018,-500.0,0.00022999,2]
[313756793,1707678639027,-500.0,0.00022999,2]
[313756794,1707678639036,-331.1,0.00022999,2]
[313756795,1707678639045,-14777.25370946,0.00023,2]
[313756796,1707678639055,-1870.2921554,0.00023,2]
[313756797,1707678639064,-3464489.91553421,0.00023,2]
[313756798,1707678639074,-500.0,0.00023014,2]
[313756799,1707678639083,-223.15,0.00023317,2]
[313756800,1707678639094,-288.72114816,0.00023364,2]
[313756801,1707678639103,-288.72114816,0.00023814,2]
[313756802,1707678639112,-931.29493299,0.00024095,2]
[313756803,1707678639123,-288.72114816,0.00024263,2]
[313756804,1707678639132,-267.47,0.00024281,2]
[313756805,1707678639141,-167.06,0.00024327,2]
[313756806,1707678639151,-4502.21,0.00024384,2]
[313756807,1707678639161,-686.4,0.0002439,2]
[313756808,1707678639170,-3951.0,0.000245,2]
[313756809,1707678639179,-19890.0,0.000245,2]
[313756810,1707678639188,-250.0,0.00024658,2]
[313756811,1707678639197,-392.0,0.00024701,2]
[313756812,1707678639206,-288.72114816,0.00024713,2]
[313756813,1707678639215,-72800.05578067,0.0002479,2]
[313756814,1707678639225,-72800.05578062,0.0002479,2]
[313756815,1707678639234,-210.0,0.00024866,2]
[313756816,1707678639243,-223.15,0.0002496,2]
[313756817,1707678639252,-1909.40818711,0.00025,2]
[313756818,1707678639261,-1250.0,0.00025,3]
[313756819,1707678639271,-898.06965926,0.00025,2]
[313756820,1707678639280,-1591.80252541,0.00025,2]
[313756821,1707678639290,-822.73659327,0.00025,2]
[313756822,1707678639299,-168.26749515,0.00025,2]
[313756823,1707678639309,-3000.0,0.00025,2]
[313756824,1707678639318,-3000.0,0.0002501,2]
[313756825,1707678639327,-2988.77475832,0.0002502,2]
[313756826,1707678640561,-375.6832297,0.00022649,2]
[313756827,1707678641277,-510.8939703,0.00022649,2]
[313756828,1707678641287,-11.22524168,0.0002502,2]
[313756829,1707678641298,-812.11700736,0.0002503,2]
[313756830,1707678641310,-1642.58916446,0.0002503,2]
[313756831,1707678641390,-480.94,0.0002503,2]
[313756832,1707678641403,-64.35382818,0.0002503,2]
[313756833,1707678641412,-257.48616182,0.0002504,2]
[313756877,1707678643045,-1405.81876783,0.00022914,2]
[313756878,1707678643123,-467.78472438,0.00022914,2]
[313756879,1707678643133,-346.15250758,0.0002504,2]
[313756880,1707678643222,-627.45,0.0002504,2]
[313756881,1707678643233,-469.05510623,0.0002504,2]
[313756882,1707678643245,-1299.85622437,0.0002504,2]
[313756883,1707678643256,-3000.0,0.0002505,2]
[313756884,1707678643265,-901.28162836,0.0002506,2]
[313756890,1707678645965,-359.42852453,0.00022913,2]
[313756891,1707678645974,-12.51150578,0.00022913,2]
[313756892,1707678645986,-191.73889694,0.00022913,2]
[313756893,1707678645995,-2098.71837164,0.0002506,2]
[313756894,1707678646005,-3000.0,0.0002507,2]
[313756895,1707678646015,-3000.0,0.0002508,2]
[313756896,1707678646025,-2577.06556135,0.0002509,2]
[313756897,1707678646037,-422.93443865,0.0002509,2]
[313756898,1707678646046,-3000.0,0.000251,2]
[313756899,1707678646055,-3530.774393,0.0002511,2]
[313756900,1707678646064,-931.29493299,0.00025275,2]
[313756901,1707678646073,-17129.62269746,0.00025991,2]
[313756902,1707678646150,-55670.43308316,0.00025991,2]
[313756903,1707678646159,-931.29493299,0.00026456,2]
[313756904,1707678646170,-267.47,0.00026545,2]
[313756905,1707678646179,-223.15,0.00026604,2]
[313756906,1707678646189,-1300.0,0.00027,3]
[313756907,1707678646198,-686.4,0.000271,2]
[313756908,1707678646208,-500.0,0.000274,7]
[313756909,1707678646218,-453.0,0.00027436,2]
[313756910,1707678646228,-392.0,0.00027446,2]
[313756911,1707678646238,-931.29493299,0.00027636,2]
[313756912,1707678646249,-72800.05578062,0.00027661,2]
[313756913,1707678646260,-13506.32394401,0.00028,2]
[313756914,1707678646288,-301.10506276,0.00028,2]
[313756915,1707678646303,-309.18,0.00028,2]
[313756916,1707678646327,-9326.27962245,0.00028,2]
[313756917,1707678646339,-13241.90885032,0.00028,2]
[313756918,1707678648795,-303.75186586,0.00022912,2]
[313756919,1707678648805,-315.20983936,0.00022913,2]
[313756920,1707678648815,-470.57813502,0.00028,2]
[313757058,1707678851301,1279.7495,0.00022343,2]
[313757059,1707678881079,176.53,0.00025315,120]
[313757060,1707678905300,155.0,0.00022343,30]
[313757061,1707678923354,155.0,0.00022343,30]
[313757063,1707678947344,155.0,0.00022343,30]
[313757064,1707678963322,155.0,0.00022343,30]
[313757065,1707678981323,155.0,0.00022343,30]
[313757066,1707679005620,155.0,0.00022343,30]
[313757067,1707679021317,155.0,0.00022343,30]
[313757068,1707679037799,227.36,0.00021067,2]
[313757069,1707679039315,155.0,0.00022343,30]
[313757070,1707679057324,155.0,0.00022343,30]
[313757072,1707679496082,241.61,0.00020862,2]
[313757073,1707679601622,366.02,0.00022141,2]
[313757074,1707679710215,2000.0,0.00022242,2]
[313757075,1707679715915,166.7,0.00022242,2]
[313757097,1707679832180,-155.0,0.00022483,2]
[313757098,1707679832189,-161.32387663,0.00022484,2]
[313757099,1707679832200,-303.75186586,0.00022484,2]
[313757100,1707679832211,-402.68003383,0.00022485,2]
[313757101,1707679832221,-545.75241723,0.00022485,2]
[313757102,1707679832230,-1108.0,0.00022488,2]
[313757103,1707679832239,-150.0,0.00022547,2]
[313757104,1707679832249,-300.0,0.00022547,2]
[313757105,1707679832259,-5748.1847,0.00022548,2]
[313757106,1707679832268,-1200.72515446,0.00022549,2]
[313757107,1707679832279,-637.6322323,0.00022549,2]
[313757108,1707679832289,-637.6322323,0.00022549,2]
[313757109,1707679832298,-900.3741,0.00022549,2]
[313757110,1707679832307,-421.48705292,0.00022647,2]
[313757111,1707679832316,-58808.52633361,0.00022648,2]
[313757112,1707679832328,-1394.25075615,0.00022648,2]
[313757113,1707679832340,-481.13236969,0.00022648,2]
[313757114,1707679832352,-364.54346348,0.00022648,2]
[313757115,1707679832364,-206734.25655513,0.00022648,2]
[313757116,1707679832373,-499.99,0.00022648,2]
[313757117,1707679832383,-100000.0,0.00022649,2]
[313757118,1707679832392,-173768.37799403,0.00022649,2]
[313757138,1707679838168,-35226.58470597,0.00022649,2]
[313757139,1707679838178,-381.97,0.00022649,2]
[313757140,1707679838187,-3089.24640326,0.00022658,5]
[313757141,1707679838197,-209.30794999,0.00022708,2]
[313757142,1707679838209,-23890.0,0.00022717,2]
[313757143,1707679838219,-5542.7476156,0.00022748,2]
[313757144,1707679838228,-250.0,0.00022759,2]
[313757145,1707679838238,-250.0,0.0002278,2]
[313757146,1707679838249,-274.56,0.00022797,2]
[313757147,1707679838261,-79919.32392635,0.0002285,2]
[313757148,1707679838271,-230.96,0.00022853,2]
[313757149,1707679838281,-323.0,0.000229,2]
[313757150,1707679838291,-209.06313135,0.00022912,2]
[313757151,1707679838301,-241.61,0.00023126,2]
[313757152,1707679838311,-167.06,0.00023495,2]
[313757153,1707679838321,-366.02,0.00023785,2]
[313757154,1707679838330,-200.0,0.00023825,2]
[313757155,1707679838340,-725.44,0.00023848,2]
[313757156,1707679838349,-500.0,0.00024081,2]
[313757157,1707679838358,-187.01,0.00024095,2]
[313757158,1707679838368,-3951.0,0.000243,2]
[313757159,1707679838377,-275.88030098,0.000243,2]
[313757160,1707679838387,-150.0,0.00024378,2]
[313757161,1707679838396,-4502.23,0.00024384,2]
[313757162,1707679838406,-19890.0,0.000244,2]
[313757163,1707679838415,-300.0,0.00024487,2]
[313757164,1707679838424,-1200.72515444,0.00024588,2]
[313757165,1707679838434,-160.89,0.00024591,2]
[313757166,1707679838443,-250.0,0.00024658,2]
[313757167,1707679838452,-160.89,0.00024751,2]
[313757168,1707679838467,-313.83822338,0.00024789,10]
[313757169,1707679838476,-8095.14548688,0.0002479,2]
[313757170,1707679838490,-297.92701087,0.0002479,2]
[313757172,1707679838642,-49846.97212676,0.0002479,2]
[313757174,1707679838652,-58240.0446245,0.0002479,2]
[313757175,1707679838662,-210.0,0.00024802,2]
[313757176,1707679838672,-160.89,0.00024911,2]
[313757177,1707679838682,-822.73659327,0.00025,2]
[313757178,1707679838693,-898.06965926,0.00025,2]
[313757179,1707679838703,-1909.40818711,0.00025,2]
[313757180,1707679838713,-168.26749515,0.00025,2]
[313757181,1707679838724,-1250.0,0.00025,3]
[313757182,1707679838736,-1591.80252541,0.00025,2]
[313757183,1707679838747,-3000.0,0.00025,2]
[313757184,1707679838757,-5988.774759,0.0002501,2]
[313757185,1707679838767,-160.89,0.00025071,2]
[313757186,1707679838777,-160.89,0.00025231,2]
[313757187,1707679838788,-241.61,0.0002539,2]
[313757188,1707679838799,-160.89,0.00025391,2]
[313757189,1707679838809,-366.02,0.00025429,2]
[313757190,1707679838819,-160.36,0.00025533,2]
[313757191,1707679838829,-160.89,0.00025552,2]
[313757192,1707679838839,-274.56,0.00025647,2]
[313757193,1707679838848,-160.89,0.00025712,2]
[313757194,1707679838858,-160.89,0.00025872,2]
[313757195,1707679838868,-1200.72515444,0.00026626,3]
[313757196,1707679838878,-160.36,0.0002681,2]
[313757197,1707679838888,-725.44,0.00026829,2]
[313757198,1707679838897,-205.0,0.00026985,2]
[313757199,1707679838907,-1300.0,0.00027,3]
[313757200,1707679838917,-366.02,0.00027073,2]
[313757201,1707679838926,-1075.5444232,0.00027439,2]
[313757202,1707679838936,-1127.94649025,0.0002744,2]
[313757203,1707679838946,-1114.38871119,0.0002744,2]
[313757204,1707679838955,-633.85,0.000276,2]
[313757205,1707679838965,-241.61,0.00027654,2]
[313757206,1707679838975,-155.0,0.00027662,2]
[313757207,1707679838985,-1000.0,0.000277,2]
[313757208,1707679838995,-910.34774326,0.000278,2]
[313757209,1707679839005,-420.79043968,0.00027898,2]
[313757210,1707679839019,-531.8411767,0.000279,2]
[313757211,1707679839029,-453.0,0.00027936,2]
[313757212,1707679839038,-218.76446542,0.0002797,2]
[313757213,1707679839048,-155.7372725,0.00027994,2]
[313757214,1707679839058,-155.40880575,0.00027998,2]
[313757215,1707679839067,-155.0,0.00027998,2]
[313757216,1707679839077,-391.56099355,0.00027998,2]
[313757217,1707679839087,-255.52140097,0.00027998,2]
[313757218,1707679839097,-155.0,0.00027998,2]
[313757219,1707679839106,-214.09962187,0.00027998,2]
[313757220,1707679839116,-229.49578432,0.00027998,2]
[313757221,1707679839126,-291.6711707,0.00027998,2]
[313757222,1707679839136,-284.23605229,0.00027998,2]
[313757223,1707679839145,-156.75185673,0.00027998,2]
[313757224,1707679839155,-395.70895984,0.00027998,2]
[313757225,1707679839165,-512.36766876,0.00027998,2]
[313757226,1707679839175,-197.8622325,0.00027998,2]
[313757227,1707679839185,-180.76493071,0.00027998,2]
[313757228,1707679839194,-374.16335448,0.00027998,2]
[313757229,1707679839207,-1647.14750903,0.00027998,2]
[313757230,1707679839216,-270.57153416,0.00027998,2]
[313757231,1707679839226,-1142.44627721,0.00027998,2]
[313757232,1707679839240,-4401.15876895,0.00027998,2]
[313757235,1707679840757,-4770.8,0.00025912,2]
[313757236,1707679843138,-1938.56529693,0.00025912,2]
[313757237,1707679843176,-484.69746,0.00025912,2]
[313757238,1707679843187,-1855.68898327,0.00025912,2]
[313757239,1707679843233,-774.28328207,0.00025912,2]
[313757240,1707679843248,-802.65195171,0.00025912,2]
[313757241,1707679843260,-2992.32307398,0.00025912,2]
[313757242,1707679843291,-1764.6706865,0.00025912,2]
[313757243,1707679843354,-1198.89,0.00025912,2]
[313757244,1707679843402,-877.77369862,0.00025912,2]
[313757275,1707679846085,-455.19443117,0.00025911,2]
[313757276,1707679846095,-23322.30556884,0.00025912,2]
[313757277,1707679846156,-9564.71735957,0.00025912,2]
[313757278,1707679846193,-3637.59445777,0.00025912,2]
[313757279,1707679846252,-4255.08280524,0.00025912,2]
[313757280,1707679846262,-58240.0446245,0.00027593,2]
[313757281,1707679846271,-11771.00237111,0.00027998,2]
[313757282,1707679846283,-702.01654297,0.00027998,2]
[313757283,1707679846294,-178.49655563,0.00027998,2]
[313757284,1707679846303,-283.94264868,0.00027999,2]
[313757285,1707679846312,-3765.41425013,0.00027999,2]
[313757286,1707679846321,-313.83822338,0.00027999,15]
[313757287,1707679846330,-34408.18816607,0.00028,2]
[313757288,1707679846342,-339.18297734,0.00028,2]
[313757289,1707679846373,-690.75586486,0.00028,2]
[313757345,1707680381029,230.96,0.00022398,2]
[313757346,1707680406078,164.74,0.00022398,2]
[313757347,1707680411134,150.0,0.00022398,2]
[313757348,1707680487663,145.0826287,0.00022301,2]
[313757349,1707680487686,54.9173713,0.00022301,2]
[313757350,1707680506632,635.8652574,0.00022192,2]
[313757351,1707680506654,690.7826287,0.00022192,2]
[313757352,1707680506682,690.7826287,0.00022192,2]
[313757353,1707680506705,690.7826287,0.00022192,2]
[313757354,1707680506728,435.7826287,0.00022192,2]
[313757355,1707680506752,19572.95936942,0.00022192,2]
[313757356,1707680534927,1057.37,0.0002211,2]
[313757357,1707680546705,250.0,0.00022299,2]
[313757358,1707680562974,261.04,0.00020218,2]
[313757359,1707680575890,163.07386818,0.00022308,2]
[313757360,1707680613471,687.353,0.00022319,2]
[313757361,1707680653319,19094.43024369,0.00022401,2]
[313757362,1707680656595,250.0,0.00021732,2]
[313757363,1707680656846,200.0,0.00021732,2]
[313757364,1707680658298,272.87,0.00021732,2]
[313757365,1707680658832,167.05,0.00022384,2]
[313757366,1707680660735,3346.47869251,0.00022401,2]
[313757367,1707680665737,388.56406727,0.00022401,2]
[313757368,1707680666838,2318.65841291,0.00022401,2]
[313757369,1707680671850,500.0,0.00022401,2]
[313757370,1707680682066,4659.65449296,0.00022401,2]
[313757371,1707680686136,5544.85639513,0.00022401,2]
[313757372,1707680695334,1685.0963,0.00022346,2]
[313757373,1707680701585,150.0,0.00022401,2]
[313757374,1707680782161,190.58,0.0002181,2]
[313757375,1707680838371,173.19,0.0002181,2]
[313757376,1707680856664,24750.0895,0.00022346,2]
[313757378,1707680933972,173.33,0.00021933,2]
[313757382,1707680975391,14689.0,0.00022094,2]
[313757387,1707680999979,868.2,0.00021734,2]
[313757391,1707681028020,247.98,0.00019862,2]
[313757392,1707681028195,247.98,0.00022126,2]
[313757411,1707681032373,-1956.89178955,0.00022403,2]
[313757412,1707681032383,-503.96228903,0.00022404,2]
[313757413,1707681032392,-302.02240745,0.00022412,2]
[313757414,1707681032401,-150.0,0.00022412,2]
[313757415,1707681032411,-11695.10036942,0.00022413,2]
[313757416,1707681032443,-12773.53766694,0.00022413,2]
[313757417,1707681032452,-1352.32461572,0.00022414,2]
[313757418,1707681032461,-190.72315125,0.00022414,2]
[313757419,1707681032470,-220.83467046,0.00022414,2]
[313757420,1707681032479,-2671.23867667,0.00022414,2]
[313757421,1707681032490,-5540.63883607,0.00022414,2]
[313757422,1707681032499,-606.54560618,0.00022415,2]
[313757423,1707681032509,-6010.64210971,0.00022415,2]
[313757424,1707681032519,-234.32954791,0.00022416,2]
[313757425,1707681032529,-157.13454447,0.00022416,2]
[313757426,1707681032541,-157.33424671,0.00022416,2]
[313757427,1707681032550,-365.78086249,0.00022416,2]
[313757428,1707681032564,-1808.2328264,0.00022416,2]
[313757429,1707681032575,-308.75805515,0.00022416,2]
[313757430,1707681032584,-155.0,0.00022416,2]
[313757431,1707681032593,-226.58331537,0.00022416,2]
[313757432,1707681032602,-1377.92965017,0.00022416,2]
[313757433,1707681032611,-2149.08139043,0.00022416,2]
[313757434,1707681032621,-155.0,0.00022416,2]
[313757435,1707681032630,-196.38680745,0.00022416,2]
[313757436,1707681032641,-216.22962887,0.00022416,2]
[313757437,1707681032650,-31223.31083646,0.00022416,2]
[313757438,1707681032659,-244.82534313,0.00022416,2]
[313757439,1707681032671,-250.97649389,0.00022416,2]
[313757440,1707681032682,-487.1124032,0.00022416,2]
[313757441,1707681032690,-155.83298268,0.00022416,2]
[313757442,1707681032700,-156.15910017,0.00022416,2]
[313757443,1707681032710,-157.4691383,0.00022416,2]
[313757444,1707681032721,-202.76663822,0.00022417,2]
[313757445,1707681032730,-1249.71971691,0.00022443,2]
[313757446,1707681032741,-380.93021872,0.00022443,2]
[313757447,1707681032752,-220.19602871,0.00022443,2]
[313757448,1707681032762,-345.084,0.00022443,2]
[313757449,1707681032772,-38798.49685463,0.00022446,2]
[313757450,1707681032812,-3683.94087238,0.00022446,2]
[313757451,1707681032823,-9794.68767496,0.00022446,2]
[313757452,1707681032850,-956.9078761,0.00022446,2]
[313757453,1707681038332,-20619.73772193,0.00022446,2]
[313757454,1707681038341,-376.8417,0.00022446,2]
[313757455,1707681038350,-1368.01,0.00022471,2]
[313757456,1707681038359,-499.99,0.00022471,2]
[313757457,1707681038368,-8040.28,0.00022471,2]
[313757458,1707681038377,-196.29826335,0.00022533,2]
[313757459,1707681038386,-155.90086713,0.00022542,2]
[313757460,1707681038395,-164.06810945,0.00022542,2]
[313757461,1707681038404,-158.07637874,0.00022542,2]
[313757462,1707681038413,-924.88050445,0.00022542,2]
[313757463,1707681038422,-2787.55898513,0.00022542,2]
[313757464,1707681038432,-155.0,0.00022542,2]
[313757465,1707681038441,-946.08105737,0.00022542,2]
[313757466,1707681038450,-5488.56110842,0.00022542,2]
[313757467,1707681038459,-155.31134145,0.00022542,2]
[313757468,1707681038468,-204.53560583,0.00022542,2]
[313757469,1707681038477,-489.12944998,0.00022542,2]
[313757470,1707681038486,-4658.73890676,0.00022543,2]
[313757471,1707681038497,-384.24477354,0.00022543,2]
[313757472,1707681038510,-692.79472096,0.00022543,2]
[313757473,1707681038522,-75775.87018323,0.00022543,2]
[313757474,1707681038535,-1720.63230353,0.00022543,2]
[313757475,1707681038546,-481.70408771,0.00022543,2]
[313757476,1707681038558,-1631.5164132,0.00022543,2]
[313757477,1707681038572,-636.9005323,0.00022543,2]
[313757478,1707681038591,-52281.3066756,0.00022543,2]
[313757479,1707681038603,-729.74969985,0.00022543,2]
[313757480,1707681038615,-406.46916604,0.00022543,2]
[313757481,1707681038630,-6043.14688264,0.00022543,2]
[313757482,1707681038643,-4382.50464073,0.00022543,2]
[313757483,1707681038655,-9488.89973459,0.00022543,2]
[313757484,1707681038680,-997.24810451,0.00022543,2]
[313757485,1707681038702,-41714.1417212,0.00022543,2]
[313757486,1707681038714,-42545.5532522,0.00022543,2]
[313757488,1707681038726,-3691.64847901,0.00022543,2]
[313757492,1707681038760,-326.45,0.00022543,2]
[313757578,1707681040830,-91821.94449659,0.00022543,2]
[313757579,1707681040842,-22914.33726221,0.00022543,2]
[313757580,1707681040885,-47481.67320901,0.00022543,2]
[313757581,1707681040897,-604.6125,0.00022543,2]
[313757582,1707681040910,-1605.91237443,0.00022543,2]
[313757583,1707681040947,-2888.51418073,0.00022543,2]
[313757600,1707681042418,-741.25106899,0.00022543,2]
[313757601,1707681042430,-243744.18656096,0.00022543,2]
[313757602,1707681042439,-6348.61,0.00022543,2]
[313757603,1707681042449,-247.72543542,0.00022544,2]
[313757604,1707681042458,-388.61263591,0.00022544,2]
[313757605,1707681042467,-10526.77414532,0.00022544,2]
[313757606,1707681042476,-222.10743328,0.00022544,2]
[313757607,1707681042485,-315.43231307,0.00022544,2]
[313757608,1707681042494,-159.26253707,0.00022544,2]
[313757609,1707681042503,-355.95779342,0.00022544,2]
[313757610,1707681042512,-1004.07625905,0.00022544,2]
[313757611,1707681042521,-168.61937043,0.00022544,2]
[313757612,1707681042530,-158.34693503,0.00022544,2]
[313757613,1707681042539,-419.23035172,0.00022544,2]
[313757614,1707681042548,-156.19727004,0.00022544,2]
[313757615,1707681042559,-281.69784795,0.00022544,2]
[313757616,1707681042568,-155.0,0.00022544,2]
[313757617,1707681042578,-294.4682262,0.00022544,2]
[313757618,1707681042587,-218.78708753,0.00022544,2]
[313757619,1707681042596,-155.49771381,0.00022545,2]
[313757620,1707681042606,-157.23616324,0.00022545,2]
[313757621,1707681042615,-313.04147607,0.00022546,2]
[313757622,1707681042624,-526.22979665,0.00022546,2]
[313757623,1707681042641,-159.19673808,0.00022546,2]
[313757624,1707681042654,-1255.14945143,0.00022546,2]
[313757625,1707681042664,-199.65296929,0.00022546,2]
[313757626,1707681042673,-34340.7322,0.00022548,2]
[313757627,1707681042683,-163.07386802,0.00022602,2]